bitfinex-derivatives/quotes_BTCF0:USTF0_20250827
["timestamp","ask_amount","ask_price","bid_price","bid_amount"]
[1756271936451,1.85312049,111510.0,111500.0,0.15]
[1756271938461,0.13046016,111510.0,111500.0,0.58657952]
[1756271938758,0.12145016,111510.0,111500.0,1.19737952]
[1756271938960,0.97197016,111510.0,111500.0,1.27799692]
[1756271939360,1.06164006,111510.0,111500.0,1.27799692]
[1756271939559,1.07065006,111510.0,111500.0,1.27799692]
[1756271939859,1.09829006,111510.0,111500.0,0.9310953]
[1756271940062,1.09829006,111510.0,111500.0,1.27799692]
[1756271940360,1.00862016,111510.0,111500.0,1.27799692]
[1756271940759,0.98098016,111510.0,111500.0,1.27799692]
[1756271941555,0.12145016,111510.0,111500.0,1.27799692]
[1756271941761,0.08764016,111510.0,111500.0,1.27799692]
[1756271941955,0.08764016,111510.0,111500.0,1.19737952]
[1756271942356,0.09591016,111510.0,111500.0,1.19737952]
[1756271943363,0.08764016,111510.0,111500.0,1.19737952]
[1756271945067,0.08764016,111510.0,111500.0,1.31025588]
[1756271945470,0.17731006,111510.0,111500.0,1.31025588]
[1756271945669,0.21322006,111510.0,111500.0,1.31025588]
[1756271945867,0.59274168,111510.0,111500.0,0.18441636]
[1756271946067,0.86590152,111510.0,111500.0,0.11587636]
[1756271946269,0.86590152,111510.0,111500.0,0.13403636]
[1756271947069,0.95354168,111510.0,111500.0,0.10176546]
[1756271947264,0.95354168,111510.0,111500.0,0.003]
[1756271948757,0.95354168,111510.0,111500.0,0.02037]
[1756271949162,0.60664006,111510.0,111500.0,0.12543]
[1756271949371,1.03366006,111510.0,111500.0,0.6020879]
[1756271949672,1.06567006,111510.0,111500.0,0.70106588]
[1756271949872,1.09417006,111510.0,111500.0,0.70106588]
[1756271950370,1.09417006,111510.0,111500.0,0.2412879]
[1756271950570,1.09417006,111510.0,111500.0,0.35412122]
[1756271950872,1.44139168,111510.0,111500.0,0.26444332]
[1756271951074,1.44139168,111510.0,111500.0,0.15161]
[1756271951869,1.44139168,111510.0,111500.0,0.26444637]
[1756271952466,1.44103168,111510.0,111500.0,0.35412427]
[1756271952666,1.44103168,111510.0,111500.0,0.2412879]
[1756271952974,1.09413006,111510.0,111500.0,0.2412879]
[1756271953271,0.59299168,111510.0,111500.0,0.2412879]
[1756271953471,1.09333006,111510.0,111500.0,0.2412879]
[1756271954066,0.24609006,111510.0,111500.0,0.2412879]
[1756271954267,1.09333006,111510.0,111500.0,0.2412879]
[1756271955070,1.09333006,111510.0,111500.0,0.35417954]
[1756271956375,1.43939168,111510.0,111500.0,0.35417954]
[1756271956762,1.06387006,111510.0,111500.0,1.06188116]
[1756271956969,0.8656,111510.0,111500.0,1.19898952]
[1756271957475,0.01908,111510.0,111500.0,1.19898952]
[1756271957874,0.02716,111510.0,111500.0,1.19898952]
[1756271959582,0.01908,111510.0,111500.0,1.19898952]
[1756271960276,0.1087499,111510.0,111500.0,1.19898952]
[1756271960967,0.1087499,111510.0,111500.0,0.83818952]
[1756271961172,0.1087499,111510.0,111500.0,1.19898952]
[1756271962476,0.1087499,111510.0,111500.0,0.8520879]
[1756271962673,0.1216799,111510.0,111500.0,1.19898952]
[1756271962979,0.0896699,111510.0,111500.0,1.19898952]
[1756271963178,0.1216799,111510.0,111500.0,0.8520879]
[1756271963377,0.1216799,111510.0,111500.0,1.19898952]
[1756271963679,0.0896699,111510.0,111500.0,1.36006479]
[1756271963872,0.0896699,111510.0,111500.0,1.01316317]
[1756271964178,0.0896699,111510.0,111500.0,1.36006479]
[1756271966979,0.0896699,111510.0,111500.0,1.01316317]
[1756271967179,0.0896699,111510.0,111500.0,1.36006479]
[1756271969278,0.20342981,111520.0,111510.0,0.2382799]
[1756271969483,0.13483981,111520.0,111510.0,0.7178195]
[1756271969782,0.26256997,111520.0,111510.0,0.7178195]
[1756271969983,0.21739746,111520.0,111510.0,0.7178195]
[1756271970386,1.06235746,111520.0,111510.0,0.7178195]
[1756271970576,1.06235746,111520.0,111510.0,0.7188195]
[1756271970771,1.06335746,111520.0,111510.0,0.7188195]
[1756271970979,1.09197746,111520.0,111510.0,0.7188195]
[1756271971482,0.24689746,111520.0,111510.0,0.7188195]
[1756271971683,1.09161746,111520.0,111510.0,0.7188195]
[1756271972685,1.06311746,111520.0,111510.0,0.7188195]
[1756271972887,1.09161746,111520.0,111510.0,0.7188195]
[1756271974189,1.13496367,111520.0,111510.0,0.7188195]
[1756271978190,1.09109746,111520.0,111510.0,0.7188195]
[1756271978490,1.12892829,111520.0,111510.0,0.7188195]
[1756271978790,1.12760829,111520.0,111510.0,0.37191788]
[1756271978988,1.08977746,111520.0,111510.0,0.7188195]
[1756271980694,1.12765727,111520.0,111510.0,0.7188195]
[1756271982102,1.12765727,111520.0,111510.0,0.37191788]
[1756271982696,1.12765727,111520.0,111510.0,0.28224798]
[1756271982896,1.47455889,111520.0,111510.0,0.13363798]
[1756271983090,1.49270212,111520.0,111510.0,0.13363798]
[1756271983392,2.10350212,111520.0,111510.0,0.13363798]
[1756271983792,2.10350212,111520.0,111510.0,0.17958798]
[1756271983988,1.26062212,111520.0,111510.0,0.20064798]
[1756271984188,2.10306212,111520.0,111510.0,0.20064798]
[1756271984484,2.10306212,111520.0,111510.0,0.13363798]
[1756271986793,1.93243017,111520.0,111510.0,0.13363798]
[1756271986995,2.04109747,111520.0,111510.0,0.13363798]
[1756271987496,2.38799909,111520.0,111510.0,0.13363798]
[1756271987885,2.38799909,111520.0,111510.0,0.02076351]
[1756271988291,0.85175585,111520.0,111510.0,0.03783351]
[1756271988494,1.79049747,111520.0,111510.0,0.16552351]
[1756271991096,1.79049747,111520.0,111510.0,0.02076351]
[1756271991293,1.79049747,111520.0,111510.0,0.04964351]
[1756271991592,1.44359585,111520.0,111510.0,0.16552351]
[1756271991792,1.79049747,111520.0,111510.0,0.16552351]
[1756271992198,1.44359585,111520.0,111510.0,0.16552351]
[1756271992396,0.60175585,111520.0,111510.0,0.16552351]
[1756271992695,1.79041747,111520.0,111510.0,0.27847874]
[1756271992898,1.44351585,111520.0,111510.0,0.27847874]
[1756271993196,1.79041747,111520.0,111510.0,0.27847874]
[1756271993896,0.60175585,111520.0,111510.0,0.27847874]
[1756271994099,1.79041747,111520.0,111510.0,0.27847874]
[1756271995698,0.60175585,111520.0,111510.0,0.27847874]
[1756271995896,0.21245585,111520.0,111510.0,0.36814864]
[1756271996093,0.23207585,111520.0,111510.0,0.25519341]
[1756271996293,1.05393585,111520.0,111510.0,0.25519341]
[1756271996592,0.21245585,111520.0,111510.0,0.60209503]
[1756271996798,1.05441585,111520.0,111510.0,0.60209503]
[1756271997392,1.07403585,111520.0,111510.0,0.60209503]
[1756271997589,1.07403585,111520.0,111510.0,0.25519341]
[1756271999097,0.17457604,111520.0,111510.0,0.71502975]
[1756271999499,1.01617604,111520.0,111510.0,0.60209503]
[1756272001501,1.38269766,111520.0,111510.0,0.16552351]
[1756272001712,1.03579604,111520.0,111510.0,0.16552351]
[1756272001901,1.38269766,111520.0,111510.0,0.13273351]
[1756272002103,1.38269766,111520.0,111510.0,0.16552351]
[1756272002402,1.38269766,111520.0,111510.0,0.25519341]
[1756272004102,0.54109766,111520.0,111510.0,0.25519341]
[1756272004407,1.03519604,111520.0,111510.0,0.25519341]
[1756272005808,0.99651053,111520.0,111510.0,0.25519341]
[1756272006609,0.97661053,111520.0,111510.0,0.25519341]
[1756272006810,0.97661053,111520.0,111510.0,0.71500547]
[1756272008510,0.97657053,111520.0,111510.0,0.71500547]
[1756272009111,0.13589053,111520.0,111510.0,0.71500547]
[1756272009305,0.96833053,111520.0,111510.0,0.71500547]
[1756272009506,0.12781053,111520.0,111510.0,0.60209503]
[1756272009704,0.01914323,111520.0,111510.0,1.21289503]
[1756272013012,1.26546331,111540.0,111530.0,0.1487238]
[1756272013211,1.27546331,111540.0,111530.0,0.2369838]
[1756272013412,1.31414882,111540.0,111530.0,0.2369838]
[1756272013818,0.47282882,111540.0,111530.0,0.2369838]
[1756272014019,0.21343926,111540.0,111530.0,0.5977838]
[1756272014214,0.21343926,111540.0,111530.0,0.94468542]
[1756272014416,1.03729926,111540.0,111530.0,0.94468542]
[1756272014812,1.05691926,111540.0,111530.0,1.05750707]
[1756272015013,1.05691926,111540.0,111530.0,1.0771955]
[1756272015618,1.05691926,111540.0,111530.0,0.96437385]
[1756272016714,1.05791926,111540.0,111530.0,0.96437385]
[1756272017618,1.12853808,111540.0,111530.0,0.61747223]
[1756272017819,1.12853808,111540.0,111530.0,0.96437385]
[1756272018522,0.28805808,111540.0,111530.0,0.96437385]
[1756272018723,1.12745808,111540.0,111530.0,0.61747223]
[1756272018923,1.12745808,111540.0,111530.0,0.96437385]
[1756272019723,0.28805808,111540.0,111530.0,0.96437385]
[1756272019923,1.12737808,111540.0,111530.0,1.0771955]
[1756272020320,1.10727808,111540.0,111530.0,1.0771955]
[1756272020520,0.26843808,111540.0,111530.0,1.0771955]
[1756272020720,1.10727808,111540.0,111530.0,1.0771955]
[1756272021122,1.10727808,111540.0,111530.0,0.73029388]
[1756272021424,1.12689808,111540.0,111530.0,1.0771955]
[1756272022018,1.12689808,111540.0,111530.0,0.73029388]
[1756272022219,1.12689808,111540.0,111530.0,1.0771955]
[1756272022721,0.12330433,111540.0,111530.0,1.0771955]
[1756272022925,0.11330433,111540.0,111530.0,0.96437385]
[1756272023125,0.11330433,111540.0,111530.0,2.05301385]
[1756272024022,0.11030433,111540.0,111530.0,2.05301385]
[1756272024222,0.11130433,111540.0,111530.0,2.05301385]
[1756272024726,0.11030433,111540.0,111530.0,2.05301385]
[1756272024926,0.10930433,111540.0,111530.0,2.05301385]
[1756272025523,0.03868551,111540.0,111530.0,2.05301385]
[1756272025921,0.03868551,111540.0,111530.0,2.05401385]
[1756272026122,0.18388409,111540.0,111530.0,0.96537385]
[1756272026322,0.55040571,111540.0,111530.0,0.58376223]
[1756272026527,1.38904571,111540.0,111530.0,0.61847253]
[1756272026726,1.462447,111540.0,111530.0,0.64148849]
[1756272027130,1.462447,111540.0,111530.0,0.52881843]
[1756272028028,1.463447,111540.0,111530.0,0.64148849]
[1756272028229,1.824247,111540.0,111530.0,0.19981849]
[1756272028528,2.074247,111540.0,111530.0,0.01968843]
[1756272028927,2.074247,111540.0,111530.0,0.21286769]
[1756272029230,2.074247,111540.0,111530.0,0.10019763]
[1756272029630,2.074247,111540.0,111530.0,0.0805092]
[1756272033131,1.72890627,111540.0,111530.0,0.0805092]
[1756272033322,1.72890627,111540.0,111530.0,0.1259792]
[1756272033525,2.07576789,111540.0,111530.0,0.1931292]
[1756272033825,2.07576789,111540.0,111530.0,0.2278392]
[1756272034027,2.07576789,111540.0,111530.0,0.1259792]
[1756272035326,2.07576789,111540.0,111530.0,0.1826792]
[1756272035736,2.07576789,111540.0,111530.0,0.1259792]
[1756272038140,2.07576789,111540.0,111530.0,0.1479692]
[1756272038828,2.07576789,111540.0,111530.0,0.2269792]
[1756272040233,1.23716789,111540.0,111530.0,0.1923192]
[1756272040537,2.07580789,111540.0,111530.0,0.2269792]
[1756272041132,0.98716789,111540.0,111530.0,0.2269792]
[1756272041329,1.82580789,111540.0,111530.0,0.2269792]
[1756272043750,1.47890627,111540.0,111530.0,0.2269792]
[1756272043943,1.82580789,111540.0,111530.0,0.2269792]
[1756272045252,1.47890627,111540.0,111530.0,0.2269792]
[1756272045449,1.82580789,111540.0,111530.0,0.2269792]
[1756272046355,0.64026627,111540.0,111530.0,0.2269792]
[1756272046548,1.82576789,111540.0,111530.0,0.2269792]
[1756272047545,1.46496789,111540.0,111530.0,0.2269792]
[1756272048252,1.09844627,111540.0,111530.0,0.316633]
[1756272048653,1.11806627,111540.0,111530.0,0.316633]
[1756272049752,1.11806627,111540.0,111530.0,0.2361238]
[1756272050349,0.25984627,111540.0,111530.0,0.58302542]
[1756272050653,1.09840627,111540.0,111530.0,0.69569548]
[1756272050841,0.25984627,111540.0,111530.0,0.69569548]
[1756272051041,1.09684538,111540.0,111530.0,0.69569548]
[1756272051352,1.09684538,111540.0,111530.0,1.05649548]
[1756272051558,1.09684538,111540.0,111530.0,0.70959386]
[1756272052249,0.25828538,111540.0,111530.0,0.70959386]
[1756272052450,1.09684538,111540.0,111530.0,1.30649548]
[1756272053755,1.09684538,111540.0,111530.0,1.19382542]
[1756272054452,1.09684538,111540.0,111530.0,1.30649548]
[1756272054453,1.11646538,111540.0,111530.0,1.30649548]
[1756272054854,1.11646538,111540.0,111530.0,1.19382542]
[1756272055350,1.11646538,111540.0,111530.0,1.30649548]
[1756272055553,1.463367,111540.0,111530.0,0.95959386]
[1756272056056,1.463367,111540.0,111530.0,0.8469238]
[1756272056355,1.463367,111540.0,111530.0,0.75727]
[1756272056657,1.463367,111540.0,111530.0,0.39647]
[1756272056858,1.463367,111540.0,111530.0,0.50914006]
[1756272057556,1.463367,111540.0,111530.0,0.22448006]
[1756272058258,1.463367,111540.0,111530.0,0.25914006]
[1756272059160,1.463367,111540.0,111530.0,0.34879446]
[1756272059758,1.463367,111540.0,111530.0,0.5969244]
[1756272059958,1.463367,111540.0,111530.0,0.2361244]
[1756272060153,0.624807,111540.0,111530.0,0.5969244]
[1756272060351,1.09668538,111540.0,111530.0,0.5969244]
[1756272060951,1.11630538,111540.0,111530.0,0.5969244]
[1756272062363,0.2207429,111540.0,111530.0,0.94382602]
[1756272062550,1.0591029,111540.0,111530.0,0.94382602]
[1756272062861,1.0591029,111540.0,111530.0,1.05649608]
[1756272064063,1.0591029,111540.0,111530.0,0.94382602]
[1756272064264,1.0591029,111540.0,111530.0,1.05665441]
[1756272065162,0.9694568,111540.0,111530.0,1.05665441]
[1756272065367,0.1130868,111540.0,111530.0,1.05665441]
[1756272065563,0.9513668,111540.0,111530.0,0.96412318]
[1756272065754,0.91268129,111540.0,111530.0,0.96412318]
[1756272066268,0.07440129,111540.0,111530.0,0.96412318]
[1756272066765,0.1130868,111540.0,111530.0,1.35915451]
[1756272067062,0.001,111540.0,111530.0,2.08462144]
[1756272067468,0.001,111540.0,111530.0,2.24569671]
[1756272068367,0.001,111540.0,111530.0,1.89875509]
[1756272068568,0.001,111540.0,111530.0,2.24565671]
[1756272068961,0.0741718,111540.0,111530.0,2.08458144]
[1756272069170,0.001,111540.0,111530.0,2.08458144]
[1756272069464,0.001,111540.0,111530.0,2.08454144]
[1756272070276,0.48930737,111560.0,111550.0,0.2386386]
[1756272070469,0.48930737,111560.0,111550.0,0.71214873]
[1756272070669,0.52799288,111560.0,111550.0,0.71214873]
[1756272070868,1.05545634,111560.0,111550.0,0.71214873]
[1756272071167,0.21729634,111560.0,111550.0,0.71214873]
[1756272071368,1.05541634,111560.0,111550.0,0.71214873]
[1756272071569,1.03879634,111560.0,111550.0,0.71214873]
[1756272072071,1.06041634,111560.0,111550.0,0.71214873]
[1756272072874,1.05841634,111560.0,111550.0,0.71214873]
[1756272073172,1.05941634,111560.0,111550.0,0.71214873]
[1756272073772,1.05841634,111560.0,111550.0,0.71214873]
[1756272073972,1.13081497,111560.0,111550.0,0.71214873]
[1756272074271,1.11119497,111560.0,111550.0,1.05905035]
[1756272074470,0.15073571,111560.0,111550.0,1.05905035]
[1756272074671,0.11408414,111560.0,111550.0,1.41985035]
[1756272074871,0.07539863,111560.0,111550.0,2.39518022]
[1756272075177,0.07539863,111560.0,111550.0,2.41536881]
[1756272076072,0.07539863,111560.0,111550.0,1.57732881]
[1756272076271,0.07539863,111560.0,111550.0,2.41532881]
[1756272076474,0.88644309,111580.0,111570.0,0.2386225]
[1756272076867,0.9251286,111580.0,111570.0,0.2386225]
[1756272077670,0.9281286,111580.0,111570.0,0.2386225]
[1756272077973,1.27503022,111580.0,111570.0,0.2386225]
[1756272078182,1.36465162,111580.0,111570.0,0.2386225]
[1756272078472,1.36465162,111580.0,111570.0,0.31904288]
[1756272078674,1.43868595,111580.0,111570.0,0.31904288]
[1756272081476,1.09178433,111580.0,111570.0,0.31904288]
[1756272083581,0.25374433,111580.0,111570.0,0.31904288]
[1756272083780,1.09146433,111580.0,111570.0,0.31904288]
[1756272084980,0.25374433,111580.0,111570.0,0.31904288]
[1756272085281,1.43832595,111580.0,111570.0,0.31904288]
[1756272085475,0.60064595,111580.0,111570.0,0.31904288]
[1756272085669,1.43832595,111580.0,111570.0,0.31904288]
[1756272085873,0.25374433,111580.0,111570.0,0.31904288]
[1756272086075,1.43832595,111580.0,111570.0,0.31904288]
[1756272086782,1.43828595,111580.0,111570.0,0.31904288]
[1756272087682,1.43824595,111580.0,111570.0,0.31904288]
[1756272088888,1.79904595,111580.0,111570.0,0.15032038]
[1756272089185,1.79904595,111580.0,111570.0,0.12744038]
[1756272090584,1.79904595,111580.0,111570.0,0.15032038]
[1756272092480,1.79904595,111580.0,111570.0,0.10989038]
[1756272092680,1.79904595,111580.0,111570.0,0.08042038]
[1756272093281,1.45214433,111580.0,111570.0,0.10989038]
[1756272093486,1.79904595,111580.0,111570.0,0.10989038]
[1756272094184,1.79904595,111580.0,111570.0,0.08042038]
[1756272094387,0.0896222,111570.0,111560.0,0.10989038]
[1756272094583,0.79732382,111570.0,111560.0,0.10989038]
[1756272094789,0.83600933,111570.0,111560.0,0.10989038]
[1756272095288,0.48910771,111570.0,111560.0,0.12744038]
[1756272095483,0.83600933,111570.0,111560.0,0.10989038]
[1756272095684,0.83700933,111570.0,111560.0,0.10989038]
[1756272096086,0.83700933,111570.0,111560.0,0.08042038]
[1756272096286,0.83900933,111570.0,111560.0,0.08042038]
[1756272098194,0.83900933,111570.0,111560.0,0.10815038]
[1756272099095,0.83900933,111570.0,111560.0,0.08042038]
[1756272099483,0.83900933,111570.0,111560.0,0.10815038]
[1756272101396,0.47820933,111570.0,111560.0,0.10815038]
[1756272101697,0.83900933,111570.0,111560.0,0.10815038]
[1756272103392,0.83900933,111570.0,111560.0,0.02773]
[1756272104699,1.09056982,111570.0,111560.0,0.08057115]
[1756272105093,0.7436682,111570.0,111560.0,0.10830115]
[1756272105289,1.09056982,111570.0,111560.0,0.10830115]
[1756272106903,1.09056982,111570.0,111560.0,0.08057115]
[1756272108001,1.09056982,111570.0,111560.0,0.10830115]
[1756272111406,1.92756982,111570.0,111560.0,0.14847115]
[1756272111705,1.5806682,111570.0,111560.0,0.22865115]
[1756272111901,1.92756982,111570.0,111560.0,0.22865115]
[1756272113406,1.67760982,111570.0,111560.0,0.22865115]
[1756272113599,1.67752982,111570.0,111560.0,0.22865115]
[1756272115303,1.3306282,111570.0,111560.0,0.22865115]
[1756272115604,1.67752982,111570.0,111560.0,0.22865115]
[1756272118114,1.67740982,111570.0,111560.0,0.22865115]
[1756272118302,0.4936682,111570.0,111560.0,0.14808]
[1756272118502,1.29182269,111570.0,111560.0,0.83461092]
[1756272118808,1.29182269,111570.0,111560.0,0.4877093]
[1756272119111,0.93102269,111570.0,111560.0,0.4877093]
[1756272119708,0.74064021,111570.0,111560.0,0.4877093]
[1756272120097,0.0896222,111570.0,111560.0,0.4877093]
[1756272120302,0.9263822,111570.0,111560.0,0.4877093]
[1756272120709,0.9263822,111570.0,111560.0,0.60032833]
[1756272122015,0.9263822,111570.0,111560.0,0.60001626]
[1756272122205,0.9263822,111570.0,111560.0,0.96081626]
[1756272122406,0.0896222,111570.0,111560.0,1.30771788]
[1756272122602,0.9263022,111570.0,111560.0,1.19509885]
[1756272124713,0.0896222,111570.0,111560.0,1.19509885]
[1756272124910,0.9262222,111570.0,111560.0,1.19509885]
[1756272125411,0.9261822,111570.0,111560.0,1.30790568]
[1756272125612,0.9261822,111570.0,111560.0,1.19509885]
[1756272125805,0.0896222,111570.0,111560.0,0.94509885]
[1756272127106,0.0896222,111570.0,111560.0,0.59819723]
[1756272127305,0.0896222,111570.0,111560.0,0.94509885]
[1756272128217,0.12830771,111570.0,111560.0,1.30785742]
[1756272129108,0.03868551,111570.0,111560.0,1.30785742]
[1756272129310,0.07203433,111580.0,111570.0,0.2372323]
[1756272129508,0.11071984,111580.0,111570.0,1.07790003]
[1756272130111,0.11071984,111580.0,111570.0,1.32790003]
[1756272130403,0.11071984,111580.0,111570.0,1.21514146]
[1756272130608,0.11071984,111580.0,111570.0,2.05150146]
[1756272130811,0.07571984,111580.0,111570.0,2.05150146]
[1756272131010,0.02787644,111590.0,111580.0,0.0896143]
[1756272131209,0.06656195,111590.0,111580.0,1.05760958]
[1756272131613,0.06656195,111590.0,111580.0,0.94492592]
[1756272132017,0.03868551,111590.0,111580.0,0.94492592]
[1756272133015,0.18294181,111590.0,111580.0,0.5980243]
[1756272133516,0.18394181,111590.0,111580.0,0.5980243]
[1756272133717,0.18394181,111590.0,111580.0,0.94492592]
[1756272134015,0.25525292,111590.0,111580.0,0.94492592]
[1756272134215,0.25525292,111590.0,111580.0,0.71052435]
[1756272134416,0.25525292,111590.0,111580.0,1.05742597]
[1756272135112,0.28289304,111590.0,111580.0,1.05742597]
[1756272136309,0.28239304,111590.0,111580.0,1.05742597]
[1756272137820,0.22824304,111590.0,111580.0,1.05742597]
[1756272138815,0.26079304,111590.0,111580.0,1.05742597]
[1756272139414,0.26079304,111590.0,111580.0,0.62091005]
[1756272139415,0.28320304,111590.0,111580.0,0.62091005]
[1756272139619,0.28320304,111590.0,111580.0,0.96781167]
[1756272140019,0.63010466,111590.0,111580.0,0.58732005]
[1756272140624,0.63010466,111590.0,111580.0,0.62091005]
[1756272142320,0.63010466,111590.0,111580.0,0.54089005]
[1756272142521,0.99090466,111590.0,111580.0,0.28797802]
[1756272142720,0.99090466,111590.0,111580.0,0.09517]
[1756272142921,0.99090466,111590.0,111580.0,0.11402]
[1756272143224,0.99090466,111590.0,111580.0,0.02772]
[1756272143427,0.99090466,111590.0,111580.0,0.10802797]
[1756272143633,0.64400304,111590.0,111580.0,0.16674797]
[1756272143829,1.46567466,111590.0,111580.0,0.31753237]
[1756272144627,1.11877304,111590.0,111580.0,0.31753237]
[1756272145929,1.11877304,111590.0,111580.0,0.67833237]
[1756272146137,1.11877304,111590.0,111580.0,0.5980244]
[1756272146332,1.46567466,111590.0,111580.0,0.50841]
[1756272146529,1.46598466,111590.0,111580.0,0.14761]
[1756272148839,1.11877304,111590.0,111580.0,0.14761]
[1756272149139,1.46567466,111590.0,111580.0,0.14761]
[1756272149332,1.08610304,111590.0,111580.0,0.2372244]
[1756272149526,1.11865304,111590.0,111580.0,0.58412602]
[1756272150437,1.11865304,111590.0,111580.0,0.2372244]
[1756272150932,0.28289304,111590.0,111580.0,0.2372244]
[1756272151139,1.11861304,111590.0,111580.0,0.5980244]
[1756272152238,1.11861304,111590.0,111580.0,0.59740036]
[1756272152536,1.11861304,111590.0,111580.0,0.94430198]
[1756272153438,1.11861304,111590.0,111580.0,0.59740036]
[1756272155338,1.11861304,111590.0,111580.0,0.70990041]
[1756272155640,1.11861304,111590.0,111580.0,0.59740036]
[1756272156036,1.46644466,111590.0,111580.0,0.50778596]
[1756272156241,1.82724466,111590.0,111580.0,0.02709596]
[1756272157044,1.48034304,111590.0,111580.0,0.04383596]
[1756272157245,1.82724466,111590.0,111580.0,0.04383596]
[1756272159737,1.82724466,111590.0,111580.0,0.15633601]
[1756272159939,1.48034304,111590.0,111580.0,0.15633601]
[1756272160142,1.82724466,111590.0,111580.0,0.15633601]
[1756272161447,1.48034304,111590.0,111580.0,0.25637601]
[1756272161745,1.46644466,111590.0,111580.0,0.25637601]
[1756272163743,0.62979466,111590.0,111580.0,0.34599041]
[1756272164143,1.46519466,111590.0,111580.0,0.34599041]
[1756272165444,1.11829304,111590.0,111580.0,0.34599041]
[1756272166345,0.28289304,111590.0,111580.0,0.34599041]
[1756272166646,1.46604466,111590.0,111580.0,0.34599041]
[1756272167948,1.46604466,111590.0,111580.0,0.25637601]
[1756272169845,1.46604466,111590.0,111580.0,0.13959601]
[1756272170350,1.46604466,111590.0,111580.0,0.25637601]
[1756272170553,1.11821304,111590.0,111580.0,0.25637601]
[1756272170851,1.11809304,111590.0,111580.0,0.69289203]
[1756272171349,1.11809304,111590.0,111580.0,0.58039198]
[1756272172450,1.11809304,111590.0,111580.0,0.94119198]
[1756272173449,1.11902304,111590.0,111580.0,0.50467596]
[1756272173649,1.46592466,111590.0,111580.0,0.50467596]
[1756272174252,1.11902304,111590.0,111580.0,0.50467596]
[1756272177354,1.46592466,111590.0,111580.0,0.50467596]
[1756272178957,1.46592466,111590.0,111580.0,0.14387596]
[1756272179154,1.46592466,111590.0,111580.0,0.11049596]
[1756272179349,1.46592466,111590.0,111580.0,0.08421596]
[1756272179550,1.46592466,111590.0,111580.0,0.02709596]
[1756272180652,1.82672466,111590.0,111580.0,0.02709596]
[1756272181050,1.47982304,111590.0,111580.0,0.02709596]
[1756272181256,1.82672466,111590.0,111580.0,0.06499596]
[1756272181457,1.82672466,111590.0,111580.0,0.17792183]
[1756272181857,0.99152466,111590.0,111580.0,0.25680183]
[1756272182151,1.82648466,111590.0,111580.0,0.25680183]
[1756272183053,1.82648466,111590.0,111580.0,0.14002183]
[1756272183554,1.47958304,111590.0,111580.0,0.19714183]
[1756272183755,1.82648466,111590.0,111580.0,0.15676183]
[1756272185358,1.7399527,111590.0,111580.0,0.15676183]
[1756272185858,1.70126719,111590.0,111580.0,0.15676183]
[1756272186261,1.07993753,111590.0,111580.0,0.60663589]
[1756272186461,1.34030719,111590.0,111580.0,0.60663589]
[1756272188562,1.34030719,111590.0,111580.0,0.51702149]
[1756272189363,1.07993753,111590.0,111580.0,0.51702149]
[1756272189564,1.34030719,111590.0,111580.0,0.51702149]
[1756272195065,1.07993753,111590.0,111580.0,0.51702149]
[1756272195369,1.34030719,111590.0,111580.0,0.51702149]
[1756272196371,1.34030719,111590.0,111580.0,0.14372596]
[1756272196572,1.34030719,111590.0,111580.0,0.40409562]
[1756272197766,1.34030719,111590.0,111580.0,0.14372596]
[1756272197961,1.34030719,111590.0,111580.0,0.40409562]
[1756272198772,1.11741304,111590.0,111580.0,0.49371002]
[1756272199073,0.22220292,111590.0,111580.0,1.36487968]
[1756272199371,0.25577292,111590.0,111580.0,1.36487968]
[1756272199571,0.25577292,111590.0,111580.0,0.84414036]
[1756272199766,0.25577292,111590.0,111580.0,1.36487968]
[1756272201271,0.11099662,111590.0,111580.0,1.36487968]
[1756272201477,0.07231111,111590.0,111580.0,1.36487968]
[1756272201970,0.07231111,111590.0,111580.0,2.19931968]
[1756272202475,0.07231111,111590.0,111580.0,2.20031968]
[1756272203577,0.07131111,111590.0,111580.0,2.20031968]
[1756272203772,0.16988143,111600.0,111590.0,0.1478764]
[1756272204078,1.26465109,111600.0,111590.0,0.85600606]
[1756272204377,1.3755157,111600.0,111590.0,0.85600606]
[1756272204976,1.11514604,111600.0,111590.0,0.85600606]
[1756272205174,1.3755157,111600.0,111590.0,0.9688018]
[1756272205469,1.3765157,111600.0,111590.0,0.9688018]
[1756272205668,1.3765157,111600.0,111590.0,0.85600606]
[1756272205978,0.28174604,111600.0,111590.0,0.85600606]
[1756272206180,0.5421157,111600.0,111590.0,0.85600606]
[1756272206566,0.28174604,111600.0,111590.0,0.85600606]
[1756272206771,0.5421157,111600.0,111590.0,0.85600606]
[1756272209883,0.28025604,111600.0,111590.0,0.85600606]
[1756272210085,0.24668604,111600.0,111590.0,0.85600606]
[1756272211485,0.28025604,111600.0,111590.0,0.85600606]
[1756272212987,0.5406257,111600.0,111590.0,0.85600606]
[1756272213984,0.28025604,111600.0,111590.0,0.85600606]
[1756272215593,0.20146561,111600.0,111590.0,0.85600606]
[1756272216990,0.23556561,111600.0,111590.0,0.85600606]
[1756272217595,0.25712561,111600.0,111590.0,0.85600606]
[1756272217893,0.22302561,111600.0,111590.0,0.85600606]
[1756272218088,0.25712561,111600.0,111590.0,0.5956364]
[1756272218284,0.20146561,111600.0,111590.0,0.85600606]
[1756272218690,0.25712561,111600.0,111590.0,0.96873808]
[1756272219991,0.25712561,111600.0,111590.0,0.85600606]
[1756272220991,0.25712561,111600.0,111590.0,0.96874313]
[1756272221499,0.25861561,111600.0,111590.0,0.96874313]
[1756272222998,0.51898527,111600.0,111590.0,0.85600606]
[1756272223701,0.25861561,111600.0,111590.0,0.85600606]
[1756272223894,0.25712561,111600.0,111590.0,0.85600606]
[1756272224998,0.22302561,111600.0,111590.0,0.85600606]
[1756272225298,0.25712561,111600.0,111590.0,0.85600606]
[1756272225994,0.51898527,111600.0,111590.0,0.85600606]
[1756272226394,0.51898527,111600.0,111590.0,0.76639966]
[1756272226998,0.51898527,111600.0,111590.0,0.85600616]
[1756272228703,0.51898527,111600.0,111590.0,0.50603]
[1756272228997,0.78028493,111600.0,111590.0,0.11237]
[1756272229207,0.78028493,111600.0,111590.0,0.08572]
[1756272229395,0.78028493,111600.0,111590.0,0.11218]
[1756272229593,0.78028493,111600.0,111590.0,0.14592]
[1756272229793,0.78028493,111600.0,111590.0,0.11218]
[1756272230001,1.03028493,111600.0,111590.0,0.225047]
[1756272230393,0.1359945,111580.0,111570.0,0.24788281]
[1756272230593,1.86910994,111580.0,111570.0,0.22142281]
[1756272230801,1.86910994,111580.0,111570.0,0.03782754]
[1756272231409,1.86910994,111580.0,111570.0,0.02020754]
[1756272231595,1.86910994,111580.0,111570.0,0.03782754]
[1756272231790,1.86910994,111580.0,111570.0,0.03982754]
[1756272232098,1.86910994,111580.0,111570.0,0.04082754]
[1756272232502,1.86910994,111580.0,111570.0,0.09322754]
[1756272232800,1.86910994,111580.0,111570.0,0.15342754]
[1756272233297,1.69561584,111580.0,111570.0,0.15142754]
[1756272233499,1.69561584,111580.0,111570.0,0.15242754]
[1756272233706,1.69561584,111580.0,111570.0,0.09222754]
[1756272234198,1.69561584,111580.0,111570.0,0.15142754]
[1756272235703,1.69561584,111580.0,111570.0,0.09122754]